Cogmind - Beta 9.6 @@@ ROGUE MODE // 2020.08.16 @ 02:43:22 Player: MTF Result: Destroyed by DAS Turret with DAS Cannon Performance ------------- Evolutions (1) 500 Regions Visited (5) 1000 Robots Destroyed (65) 325 Value Destroyed (1541) 1541 Prototype IDs (30) 600 Alien Tech Used (0) 0 Bonus (432) 432 TOTAL SCORE: 4398 Bonus ------- Follower Combat Kills 132 Aligned with FarCom 300 Cogmind --------- Core Integrity 0/400 Matter 126/450 Energy 304/310 System Corruption 0% Temperature Cool (2) Movement Walking (120) Location -9/Exiles Parts ------- > --- POWER (1) -------- Reinforced Fission Core > --- PROPULSION (3) --- Advanced Myomer Leg Advanced Myomer Leg > --- UTILITY (3) ------ High-capacity Storage Unit Large Matter Pod > --- WEAPON (2) ------- Mini Grenade Launcher > --- INVENTORY (12) --- Light Nuclear Core EM Pulse Gun EM Pulse Gun Heavy Assault Rifle Heavy Assault Rifle Autogun Improved Assault Rifle 8R-AWN's Boregun Mini Grenade Launcher Peak State ------------ > --- POWER ------------ Reinforced Fission Core > --- PROPULSION ------- Advanced Myomer Leg Advanced Myomer Leg > --- UTILITY ---------- Experimental Heat Sink High-capacity Storage Unit Large Matter Pod > --- WEAPON ----------- Autogun 8R-AWN's Boregun > --- INVENTORY -------- Light Nuclear Core Heavy Assault Rifle Heavy Assault Rifle Autogun Improved Assault Rifle Mini Grenade Launcher Mini Grenade Launcher [Rating: 44] Favorites ----------- Power Heavy Ion Engine Engine Heavy Ion Engine Power Core Light Nuclear Core Propulsion Light Treads Treads Light Treads Leg Advanced Myomer Leg Utility Large Storage Unit Device Experimental Heat Sink Storage Large Storage Unit Protection Hardened Light Armor Plating Weapon Autogun Energy Gun Heavy EM Pulse Gun Ballistic Gun Autogun Launcher Mini Grenade Launcher Build | -11 -10 -10 -9 -9 -9 ------- Run | Scr Mat Min Mat Min Exi Slots Evolved 2 | . . . 2 . . Power . | . . . . . . Propulsion 1 | . . . 1 . . Utility 1 | . . . 1 . . Weapon . | . . . . . . Parts Attached 51 | 7 6 3 11 4 20 Power 4 | 1 . . 2 . 1 Engine 2 | 1 . . 1 . . Core 2 | . . . 1 . 1 Reactor . | . . . . . . Propulsion 10 | 2 . . 3 1 4 Treads 8 | 2 . . 3 1 2 Leg 2 | . . . . . 2 Wheel . | . . . . . . Hover . | . . . . . . Flight . | . . . . . . Utility 11 | 2 2 . 1 . 6 Device 1 | . . . . . 1 Storage 8 | 2 2 . 1 . 3 Processor . | . . . . . . Hackware . | . . . . . . Protection 2 | . . . . . 2 Artifact . | . . . . . . Weapon 26 | 2 4 3 5 3 9 Energy Gun 6 | 2 4 . . . . Energy Cannon . | . . . . . . Ballistic Gun 13 | . . 2 4 1 6 Ballistic Cannon . | . . . . . . Launcher 7 | . . 1 1 2 3 Special Weapon . | . . . . . . Impact Weapon . | . . . . . . Slashing Weapon . | . . . . . . Piercing Weapon . | . . . . . . Special Melee Weapon . | . . . . . . Unidentified Prototypes 4 | . . . 1 . 3 Parts Lost 18 | . 1 1 3 . 13 Power . | . . . . . . Propulsion 7 | . . . 2 . 5 Utility 3 | . . . . . 3 Weapon 8 | . 1 1 1 . 5 Highest Loss Streak 7 | . 1 1 1 . 7 Average Slot Usage (%) 97 | . 99 93 100 100 96 Engine 10 | . 14 14 5 11 9 Core 1 | . . . 5 . 1 Treads 29 | . 28 28 33 33 28 Storage 28 | . 28 28 33 33 27 Protection 1 | . . . . . 3 Energy Gun 6 | . 27 4 . . . Ballistic Gun 11 | . . 6 18 19 13 Launcher 5 | . . 11 3 2 7 Naked Turns . | . . . . . . Heaviest Build 92 | 17 43 43 62 62 92 Greatest Support 60 | 40 40 40 60 60 60 Greatest Overweight (x) 13 | . 1 1 1 1 13 Average Overweight (x) . | . . . . . . Largest Inventory Capacity 26 | 8 16 16 22 22 26 Average Capacity 18 | 5 13 16 21 22 20 Most Carried 26 | 1 16 15 22 22 26 Average Carried 16 | . 11 14 17 21 18 Final Capacity 22 | 8 16 16 22 22 12 Final Carried 22 | 1 15 15 22 22 9 Class Distribution -------------------- 51% | Mutant 44% | Hauler-Mutant 4% | Scavenger-Mutant Dominant Class ---------------- Mutant | -10/Materials Mutant | -10/Mines Hauler-Mutant | -9/Materials Hauler-Mutant | -9/Mines Hauler-Mutant | -9/Exiles Resources | -11 -10 -10 -9 -9 -9 ----------- Run | Scr Mat Min Mat Min Exi Matter Collected 1227 | 270 45 85 487 84 256 Remotely . | . . . . . . Salvage Created 2177 | 98 752 60 1043 106 118 Parts 124 | 3 45 13 48 10 5 Haulers Intercepted 5 | . 2 . 3 . . Recyclers Shooed 2 | . 1 1 . . . Parts Field Recycled . | . . . . . . Retrieved Matter . | . . . . . . Parts Self-Destructed . | . . . . . . Prevented . | . . . . . . Kills | -11 -10 -10 -9 -9 -9 ------- Run | Scr Mat Min Mat Min Exi Combat Hostiles Destroyed 54 | . 13 7 20 6 8 Guns 34 | . 13 2 15 3 1 AOE 20 | . . 5 5 3 7 Classes Destroyed 10 | 1 3 2 2 1 1 Tunneler 1 | . . 1 . . . Hauler 5 | . 2 . 3 . . Recycler 2 | 1 . . 1 . . Mechanic 1 | . . . 1 . . Watcher 2 | . 1 . 1 . . Swarmer 11 | . . 6 1 4 . Grunt 28 | . 13 1 13 1 . Brawler 1 | . . . . 1 . Sentry 6 | . . . 6 . . Assembled 7 | . . . . . 7 Best Kill Streak 7 | 1 3 3 5 6 7 Combat Bots Only 7 | . 3 3 5 6 7 Max Kills in Single Turn 3 | 1 2 2 3 2 2 Gunslinging 1 | . 1 . . . . Exploded 3 | . . 2 3 2 2 Melee . | . . . . . . Uniques/NPCs Destroyed 1 | . . . . . 1 8R-AWN (-9/Exiles) Combat | -11 -10 -10 -9 -9 -9 -------- Run | Scr Mat Min Mat Min Exi Damage Taken 3105 | . 332 121 646 135 1871 Core 501 | . 63 25 66 37 310 Absorbed by Shields . | . . . . . . Core Remaining (%) 82 | 100 . 64 . . . Volleys Fired 174 | 1 40 7 59 7 60 Largest 2 | 2 2 1 2 2 2 Hottest 90 | 80 90 30 46 46 46 Shots Fired 303 | 2 80 7 92 11 111 Gun 285 | 2 80 2 88 8 105 Cannon . | . . . . . . Launcher 18 | . . 5 4 3 6 Special . | . . . . . . Kinetic 203 | . . 2 88 8 105 Thermal . | . . . . . . Explosive 18 | . . 5 4 3 6 Electromagnetic 82 | 2 80 . . . . Robot Hit Streak 27 | 1 10 3 27 4 19 Robot Miss Streak 3 | . 2 . 3 2 2 Penetration Max . | . . . . . . Secondary Targets 3 | . 2 . 1 . . Max Gunslinging Chain 1 | . 1 . 1 . . Shots Hit Robots 222 | 1 55 2 67 7 90 Core Hits 104 | 1 21 8 40 7 27 Critical Hits 1 | . . . 1 . . Critical Kills . | . . . . . . Critical Parts Destroyed 1 | . . . 1 . . Melee Attacks . | . . . . . . Impact . | . . . . . . Slashing . | . . . . . . Piercing . | . . . . . . Sneak Attacks . | . . . . . . Combat Hostiles . | . . . . . . Follow-up Attacks . | . . . . . . Damage Inflicted 5185 | 15 1054 474 1469 418 1755 Guns 3351 | 15 870 36 1087 71 1272 Cannons . | . . . . . . Explosions 1786 | . 173 429 354 347 483 Melee . | . . . . . . Ramming 48 | . 11 9 28 . . Kinetic 2466 | . . 36 1087 71 1272 Thermal 173 | . 173 . . . . Explosive 1613 | . . 429 354 347 483 Electromagnetic 885 | 15 870 . . . . Impact . | . . . . . . Slashing . | . . . . . . Piercing . | . . . . . . Highest Corruption . | . . . . . . Average Corruption . | . . . . . . Corruption Purged . | . . . . . . Overload Shots . | . . . . . . Overflow Damage 110 | . 16 32 1 61 . Projectiles . | . . . . . . Explosions 110 | . 16 32 1 61 . Melee . | . . . . . . Knockbacks 1 | . . . 1 . . Impact 1 | . . . 1 . . Kinetic . | . . . . . . Secondary . | . . . . . . Self-Inflicted Damage 173 | . 53 52 . 31 37 Shots 5 | . 1 2 . 1 1 Rammed 7 | . 4 1 2 . . Targets Rammed 9 | . 4 2 3 . . Kicked . | . . . . . . Crushed 2 | . . 1 1 . . Highest Temperature 301 | 18 301 3 19 . 52 Average Temperature 37 | 12 70 3 5 . 15 Received Heat Transfer 436 | . 159 9 228 . 40 Siege Activations . | . . . . . . Robots Corrupted 1 | . 1 . . . . Combat Hostiles . | . . . . . . Parts Fried 6 | . 6 . . . . Impact Corruptions . | . . . . . . Robots Melted . | . . . . . . Combat Hostiles . | . . . . . . Parts Melted 1 | . . 1 . . . Heat Transferred 200 | . 200 . . . . Parts Sabotaged . | . . . . . . Parts Stolen . | . . . . . . Parts Stripped . | . . . . . . Power Chain Reactions 2 | . 2 . . . . Missiles Intercepted . | . . . . . . Alert | -11 -10 -10 -9 -9 -9 ------- Run | Scr Mat Min Mat Min Exi Peak Influence 401 | 5 174 122 401 266 . Average Influence 117 | 1 83 58 201 197 . Maximum Alert Level 2 | . 1 . 2 1 . Low Security (%) 80 | 100 99 100 47 47 . Level 1 18 | . . . 48 52 . Level 2 1 | . . . 4 . . Level 3 . | . . . . . . Level 4 . | . . . . . . Level 5 . | . . . . . . High Security . | . . . . . . Max Security . | . . . . . . Squads Dispatched 8 | . 6 . 2 . . Investigation 2 | . 2 . . . . Extermination . | . . . . . . Reinforcement 6 | . 4 . 2 . . Assault . | . . . . . . Garrison . | . . . . . . Intercept . | . . . . . . Construction Impeded . | . . . . . . Haulers Reinforced . | . . . . . . Stealth | -11 -10 -10 -9 -9 -9 --------- Run | Scr Mat Min Mat Min Exi Distress Signals 3 | . . . 3 . . Communications Jammed . | . . . . . . Distress Signals . | . . . . . . Times Spotted 92 | . 35 9 29 7 12 Peak Tracking Total 9 | . 4 3 4 4 9 Tactical Retreats 11 | . 8 . 1 1 1 Traps | -11 -10 -10 -9 -9 -9 ------- Run | Scr Mat Min Mat Min Exi Traps Triggered 1 | . 1 . . . . Indirectly . | . . . . . . Trap Hack Attempts . | . . . . . . Triggered . | . . . . . . Disarmed . | . . . . . . Reprogrammed . | . . . . . . Reused . | . . . . . . Traps Extracted . | . . . . . . Installed . | . . . . . . Triggered . | . . . . . . Machines | -11 -10 -10 -9 -9 -9 ---------- Run | Scr Mat Min Mat Min Exi Machines Disabled 5 | . 2 2 . . 1 Max in Single Turn 2 | . 2 2 . . 1 Machines Sabotaged . | . . . . . . Garrisons Compromised . | . . . . . . Overloaded Fab Kills . | . . . . . . Fab Network Shutdowns . | . . . . . . Hacking | -11 -10 -10 -9 -9 -9 --------- Run | Scr Mat Min Mat Min Exi Machines Accessed 8 | . 2 . 4 . 2 Terminals 6 | . 2 . 4 . . Fabricators . | . . . . . . Repair Stations . | . . . . . . Recycling Units . | . . . . . . Scanalyzers . | . . . . . . Garrison Access . | . . . . . . Total Hacks 41 | . 9 . 8 . 24 Successful 32 | . 5 . 3 . 24 Failed 9 | . 4 . 5 . . Catastrophic . | . . . . . . Database Lockouts . | . . . . . . Manual 14 | . 6 . 7 . 1 Terminals 17 | . 9 . 8 . . Fabricators . | . . . . . . Repair Stations . | . . . . . . Recycling Units . | . . . . . . Scanalyzers . | . . . . . . Garrison Access . | . . . . . . Terminal Hacks 27 | . 2 . 1 . 24 Record 23 | . . . . . 23 Prototype ID Bank 2 | . 2 . . . . Branch Access Points 1 | . . . 1 . . EX-Prototype ID Bank 1 | . . . . . 1 Fabricator Hacks . | . . . . . . Repair Station Hacks . | . . . . . . Recycling Unit Hacks . | . . . . . . Scanalyzer . | . . . . . . Garrison Access Hacks . | . . . . . . Unauthorized Hacks 5 | . 3 . 2 . . Terminals 5 | . 3 . 2 . . Track 4 | . 2 . 2 . . Botnet 1 | . 1 . . . . Fabricators . | . . . . . . Repair Stations . | . . . . . . Recycling Units . | . . . . . . Scanalyzers . | . . . . . . Garrison Access . | . . . . . . Data Cores Recovered . | . . . . . . Used . | . . . . . . Hacking Detections 6 | . 2 . 4 . . Full Trace Events . | . . . . . . Feedback Events . | . . . . . . Feedback Blocked . | . . . . . . Robot Schematics Acquired . | . . . . . . Robots Built . | . . . . . . Matter . | . . . . . . Time . | . . . . . . Total Robot Build Rating . | . . . . . . Part Schematics Acquired . | . . . . . . Parts Built . | . . . . . . Matter . | . . . . . . Time . | . . . . . . Total Part Build Rating . | . . . . . . Parts Repaired . | . . . . . . Time . | . . . . . . Parts Recycled . | . . . . . . Recycled Matter . | . . . . . . Retrieved Matter . | . . . . . . Retrieved Components . | . . . . . . Parts Scanalyzed . | . . . . . . Part Schematics Acquired . | . . . . . . Parts Damaged . | . . . . . . Bothacking | -11 -10 -10 -9 -9 -9 ------------ Run | Scr Mat Min Mat Min Exi Used RIF Installer . | . . . . . . Robots Hacked . | . . . . . . Non-combat . | . . . . . . Combat . | . . . . . . Robot Hacks Applied . | . . . . . . Relay Couplers Released . | . . . . . . Robots Rewired . | . . . . . . Allies Hacked . | . . . . . . Hacks Repelled . | . . . . . . Allies | -11 -10 -10 -9 -9 -9 -------- Run | Scr Mat Min Mat Min Exi Total Allies 4 | . . 4 . . . Largest Group 4 | . . 4 3 . . Highest-Rated Group 71 | . . 71 40 . . Highest-Rated Ally 31 | . . 31 16 . . Total Orders . | . . . . . . Ally Attacks 35 | . . 16 19 . . Total Damage 484 | . . 235 249 . . Kills 6 | . . 3 3 . . Allies Corrupted . | . . . . . . Allies Melted . | . . . . . . Intel | -11 -10 -10 -9 -9 -9 ------- Run | Scr Mat Min Mat Min Exi Robot Analysis Total . | . . . . . . Derelict Logs Recovered 4 | . . 3 . 1 . Drone Launches . | . . . . . . Drone Recoveries . | . . . . . . Exploration | -11 -10 -10 -9 -9 -9 ------------- Run | Scr Mat Min Mat Min Exi Turns Passed 5120 | 95 988 1028 980 297 1732 Spaces Moved 2625 | 58 464 585 455 155 908 Core 11 | 10 . . . . 1 Treads 2460 | 48 464 585 455 155 753 Legs 154 | . . . . . 154 Wheels . | . . . . . . Hover . | . . . . . . Flight . | . . . . . . Fastest Speed 50 | 50 160 160 160 160 120 Average Speed 168 | 141 172 170 167 175 164 Slowest Speed 700 | 160 180 180 180 180 700 Overloaded Moves . | . . . . . . Propulsion Burnouts . | . . . . . . Robots Hopped . | . . . . . . Cave-ins Triggered . | . . . . . . Exploration Rate (%) 61 | 5 91 95 60 31 86 Regions Visited 5 Branch Regions 3 Pre-discovered Areas 2 | . . . . 1 1 Known Exits Taken 2 | . . 1 1 . . Unknown Exits Taken 3 | 1 1 . . 1 . Scrap Searched 2 | . . 2 . . . Spaces Dug 36 | . . 17 19 . . Terrain Destroyed 155 | . 5 38 35 41 36 Melee . | . . . . . . Projectile . | . . . . . . AOE 155 | . 5 38 35 41 36 Actions | -11 -10 -10 -9 -9 -9 --------- Run | Scr Mat Min Mat Min Exi Total 3060 | 66 573 606 594 168 1053 Wait 123 | . 29 9 53 . 32 Move 2620 | 57 463 584 454 154 908 Hop . | . . . . . . Pick Up 45 | 1 22 1 10 1 10 Fast Attach 17 | 7 . . 4 1 5 Attach 15 | . 2 1 5 . 7 Detach 3 | . . . 2 . 1 Swap 19 | . 4 2 2 3 8 Drop 32 | . 9 . 2 2 19 Fire 174 | 1 40 7 59 7 60 Melee . | . . . . . . Ram . | . . . . . . Kick . | . . . . . . Crush 9 | . 4 2 3 . . Escape Stasis . | . . . . . . Rewire 3 | . . . . . 3 Trap . | . . . . . . Miscellaneous . | . . . . . . Route ------- -11/Scrapyard -10/Materials (discovered 5 exits: *Mat x3 / [*Min x2]) -10/Mines (discovered 2 exits: *Mat x2) -9/Materials (discovered 5 exits: [*Mat x2] / *Min / *Sto x2) -9/Mines -9/Exiles History --------- Turn | Location | Event 4 | -11/Scrapyard | Discovered new exit (range 15) 96 | -11/Scrapyard | Entered Materials 300 | -10/Materials | Build established: Mutant 376 | -10/Materials | Discovered new exit (range 13) 586 | -10/Materials | Discovered new exit (range 16) 702 | -10/Materials | Discovered new exit (range 16) 838 | -10/Materials | Discovered new exit (range 8) 944 | -10/Materials | Discovered new exit (range 7) 1084 | -10/Materials | Entered Mines 1102 | -10/Mines | Learned Materials emergency access door positions 1443 | -10/Mines | Discovered new exit (range 7) 1807 | -10/Mines | Received a Mining Laser from a helpful Derelict 1956 | -10/Mines | Assisted by bots powering up and referring to "LRC-V3" 2008 | -10/Mines | Identified exit to Materials 2112 | -10/Mines | Entered Materials 2112 | -9/Materials | Accompanied by 3 allies 2112 | -9/Materials | Evolved 2 slots: Propulsion x1, Utility x1 2113 | -9/Materials | Identified exit to Storage 2404 | -9/Materials | Build established: Hauler-Mutant 2463 | -9/Materials | Discovered new exit (range 10) 2649 | -9/Materials | Discovered exit to Storage (range 11) 2749 | -9/Materials | Discovered new exit (range 9) 2869 | -9/Materials | Identified exit to Mines 3092 | -9/Materials | Entered Mines 3099 | -9/Mines | Received a Rocket Launcher from a helpful Derelict 3334 | -9/Mines | Assembled infested the area 3339 | -9/Mines | Assisted by a Guerilla fighting off Assembled 3381 | -9/Mines | Deemed a non-threat by the Exiles lab entrance 3381 | -9/Mines | Discovered new exit (range 5) 3389 | -9/Mines | Entered Exiles 3428 | -9/Exiles | Met 8R-AWN 3455 | -9/Exiles | Met EX-HEX 3514 | -9/Exiles | Met EX-DEC 3602 | -9/Exiles | Visited The Gauntlet 3984 | -9/Exiles | Met EX-BIN 4007 | -9/Exiles | Aligned with FarCom system 4009 | -9/Exiles | Given EX-Vault access code 4052 | -9/Exiles | Opened EX-Vault 4074 | -9/Exiles | Found XL Autogun Array 4080 | -9/Exiles | Found Skeleton Box 4087 | -9/Exiles | Found Supersonic Drone Bay 4126 | -9/Exiles | Warned to stay clear of 0b10 Research branches 4333 | -9/Exiles | Learned location of Zion (-6) 4690 | -9/Exiles | Attacked by the Exiles 4706 | -9/Exiles | Build established: Mutant 4742 | -9/Exiles | Destroyed 7 combat bots 4824 | -9/Exiles | Lost 3 parts (1n1u1w) 4845 | -9/Exiles | Core integrity fell below 50% 4908 | -9/Exiles | Destroyed 8R-AWN 4925 | -9/Exiles | Found Prototype Ballistic Gun 4925 | -9/Exiles | Identified 8R-AWN's Boregun 4930 | -9/Exiles | Lost 7 parts (4n1u2w) 5118 | -9/Exiles | Core integrity fell below 20% 5121 | -9/Exiles | Destroyed by DAS Turret with DAS Cannon Last Messages --------------- 04921_ Acquired Adv. Myomer Leg. 04922_ Acquired 106 matter. 04925_ Acquired Prototype Ballistic Gun. 04925_ Identified 8R-AWN's Boregun. 04929_ Acquired Prototype Device. 04929_ Identified Exp. Heat Sink. 04932_ Acquired Rnf. Fission Core. 04953_ Acquired Mni. Grenade Launcher. 04958_ Acquired EM Pulse Gun. 05059_ Attempting to rewire as-38699. 05059_ as-38699 cannot be rewired. 05060_ Attempting to rewire as-38699. 05060_ as-38699 cannot be rewired. 05061_ Attempting to rewire as-38699. 05061_ as-38699 cannot be rewired. 05111_ Mni. Grenade Launcher destroyed. 05113_ Autogun destroyed. 05115_ Knocked back. 05119_ Exp. Heat Sink destroyed. 05119_ Knocked back. Map ----- +----------------------------------------------------+ | ###??????????#"" #????????# """#? | | #????????????#"" #????????#" "X" """"? | | ##???????????#"" "#????????#" """ #? | | "#???????????? ""?????????#" """""""""#? | | ###???????????" "?????????##" ###########? | | ##??????????# #????????##"" #??????????? | | "" ######???### ###?######"" #??????????? | | #" """#####X# #"###""""""" ##?????????? | | #" """""" " "" ##???###### | | #"# "" """ " #####""""" | | #### " " " """ | | ???### "" | | ?????### " | | ???????## | | ????????## | | ?????????##" | | ??????????#""" """""" | | ?????????##" ######""" | | ?????????#"" ""##????#####""" | | ????????##""" """##?????????##""" | | ????????#""" """##???????????#"""" | | ????????#""" ""#???????????##"" | | ????????#"" ########??####"""" | | ????????#"""t ##aaa####""" | | ????????#"" """" | | ????????##"" @ | | ?????????#"""" | | ?????????## " | | ??????????#" " "" "" | | ??????????#"""" ""## ##""" " " ""# | | ??????????#"" ""#### ######""" """# | | ??????????#" """"##??# #????###""""## | | ??????????#""" """#??## ####???######? | | ??????????## ""##??#! "!#?????????? | | ???????????#"" """##???#" !#?????????? | | ???????????##""" ##????#" "#?????????? | | ????????????##"""" ##?????# ""!"#?????????? | | ?????????????### #??????########?????????? | | ???????????????##### ##???????????????????????? | | ???????????????????## #????????????????????????? | | ????????????????????# #????????????????????????? | | ????????????????????# #????????????????????????? | | ????????????????????# #????????????????????????? | | ???????????###??????# #????????????????????????? | | ?"""""???#"""""?????# #????????????????????????? | | """"""????"""""""???# #????????????????????????? | | """" "???#" """"#??# #????????????????????????? | | "" """????"" """???# #????????????????????????? | | " ""????"" ""???# #????????????????????????? | | #"""########"""###### ########?????????????????? | +----------------------------------------------------+ Best States ------------- Heat Dissipation 54 Energy Generation 19 Energy Capacity 310 Matter Stores 300 Matter Capacity 450 Sight Range 16 Terrain Scan Density 10 Armor Coverage 300 Evasion (%) 40 Recoil Reduction 3 Item Schematics ----------------- None Robot Schematics ------------------ None Fabricated ------------ Nothing Alien Tech Used ----------------- None Achievements -------------- None Challenges ------------ None Game ------ Seed SalvageTiamatTrap Manual? 0 Play Time 00:50:07 Cumulative 755.8 hours Start 2020.08.16 @ 01:36:13 End 2020.08.16 @ 02:43:22 Sessions 1 Manual Loads 0 Difficulty Rogue Special Mode None Game No. 298 Rogue 298 Adventurer 0 Explorer 0 Win Type - Total 37 Types 9/10/7/3/1/1/6 Lore% 95 Gallery% 93 Achievement% 81 Wizard Run 0 Options --------- ASCII 0 Keyboard 0 Movement Numpad Keybinds 0 Fullscreen 2 Font 24/Smallcaps Map View 76x50 Tactical HUD 1 Map Filters NONE Filters NONE Steam 1 RUN: df456dd6-5cff-4658-af33-b03ed913f539